bitfinex-derivatives/quotes_ETHF0:USTF0_20260204
["timestamp","ask_amount","ask_price","bid_price","bid_amount"]
[1770217286531,7.07456238,2167.2,2165.5,7.49745826]
[1770217286928,7.30556238,2167.6,2165.7,8.56098826]
[1770217287132,7.07783217,2167.6,2166.1,7.49745826]
[1770217287333,0.462,2168.2,2167.2,0.23104]
[1770217287633,7.07456238,2168.6,2166.8,7.49745826]
[1770217288135,7.07456238,2168.4,2166.8,7.49745826]
[1770217288336,7.07456238,2168.4,2166.7,0.462]
[1770217288337,0.00390152,2168.4,2167.2,8.56026826]
[1770217288630,7.07456238,2169.1,2167.2,8.79130826]
[1770217288832,7.53656238,2169.5,2167.6,7.49745826]
[1770217289134,0.45,2170.4,2169.1,1.06185]
[1770217289328,0.45,2170.4,2169.1,7.95845826]
[1770217289829,0.4542346,2170.4,2169.1,9.02578522]
[1770217290035,7.44171899,2171.6,2169.1,9.02578522]
[1770217290036,7.07456238,2172.0,2170.4,7.49745826]
[1770217290232,7.07456238,2172.0,2170.1,7.49745826]
[1770217290733,7.07456238,2170.5,2169.1,0.00545696]
[1770217290932,1.06167,2169.6,2167.8,7.701979]
[1770217291133,1.06177,2169.4,2167.8,7.701979]
[1770217291332,0.461,2169.5,2167.8,7.701979]
[1770217291527,1.5227,2169.5,2167.8,7.701979]
[1770217291827,1.06188,2169.1,2167.8,7.701979]
[1770217292035,3.74766637,2168.7,2167.8,0.00570387]
[1770217292336,3.69514262,2169.3,2167.8,0.00570387]
[1770217292337,0.00433526,2169.5,2168.3,7.95863842]
[1770217292834,1.0618,2169.3,2168.3,0.46118016]
[1770217293135,3.74766637,2168.9,2167.7,0.8554]
[1770217293431,4.80968637,2168.9,2167.7,0.8554]
[1770217294027,3.74766637,2168.9,2167.7,0.85955206]
[1770217294332,2.67128383,2169.3,2167.7,0.85955206]
[1770217295030,2.67128383,2169.3,2167.7,8.35701032]
[1770217295233,0.461,2169.3,2167.7,8.35701032]
[1770217295629,0.00433526,2169.5,2168.2,7.49745826]
[1770217295830,0.2307,2170.5,2168.6,7.49745826]
[1770217296036,2.66028383,2170.4,2168.6,7.49745826]
[1770217296234,2.21028383,2170.2,2168.6,7.49745826]
[1770217296432,2.28493721,2170.0,2168.6,7.49745826]
[1770217296633,0.23077,2169.8,2168.3,7.95845826]
[1770217296839,0.00571123,2169.8,2168.3,7.95845826]
[1770217297732,6.03260358,2169.6,2167.8,7.49745826]
[1770217297936,3.97845637,2169.6,2167.8,7.49745826]
[1770217298141,0.00571123,2169.8,2168.3,7.49745826]
[1770217298435,0.00571123,2169.8,2168.2,1.29323]
[1770217298436,0.00571123,2169.8,2168.5,7.49745826]
[1770217298837,0.00571123,2169.8,2168.7,7.49745826]
[1770217299030,0.45,2170.4,2168.7,7.49745826]
[1770217299231,0.45,2170.4,2169.2,8.55924826]
[1770217299431,2.44021256,2171.4,2169.4,7.49745826]
[1770217299636,2.44021256,2171.4,2169.4,7.72826826]
[1770217299834,2.44021256,2171.3,2169.4,7.49745826]
[1770217300035,2.44021256,2170.5,2169.4,0.00546877]
[1770217300236,1.06112,2170.7,2169.4,7.50292703]
[1770217300435,0.45,2170.6,2169.4,7.50292703]
[1770217300637,0.45,2170.4,2169.4,7.50292703]
[1770217300835,2.47274354,2170.7,2169.4,7.50292703]
[1770217301031,2.47274354,2170.7,2169.4,0.00546877]
[1770217301342,0.45,2170.4,2169.4,0.00546877]
[1770217301536,2.47274354,2170.7,2169.4,0.00546877]
[1770217301731,1.06146,2170.0,2168.6,7.49745826]
[1770217301941,2.23660477,2169.8,2168.2,7.95845826]
[1770217302142,0.461,2169.7,2168.3,7.95863842]
[1770217302344,0.45,2169.7,2168.3,7.95863842]
[1770217302544,0.45,2169.6,2168.3,7.95863842]
[1770217302740,0.00457477,2169.6,2168.3,7.96306852]
[1770217303549,0.45,2169.3,2168.3,7.96306852]
[1770217303751,2.50817234,2169.0,2167.4,7.49745826]
[1770217304049,0.45,2168.6,2167.4,7.49745826]
[1770217304244,0.45,2168.4,2167.3,0.461]
[1770217304438,0.45,2168.4,2167.3,7.95845826]
[1770217304439,0.23092,2168.4,2167.3,7.95845826]
[1770217304642,0.45,2168.0,2166.4,8.18957826]
[1770217304845,0.00534602,2168.0,2166.4,8.1949447]
[1770217305048,0.00534602,2168.0,2166.4,8.38646028]
[1770217305247,0.00534602,2168.0,2166.4,8.1949447]
[1770217305448,0.00534602,2168.0,2166.6,7.49745826]
[1770217305645,0.00534602,2168.0,2166.7,0.23109]
[1770217305845,0.00534602,2168.0,2166.8,7.49745826]
[1770217306049,0.23088,2168.7,2167.0,7.49745826]
[1770217306345,0.23082,2169.3,2167.6,7.49745826]
[1770217306541,0.23082,2169.3,2167.5,0.231]
[1770217306542,1.41818351,2169.9,2168.0,7.49745826]
[1770217306743,1.41818351,2169.9,2167.9,1.06242]
[1770217306744,1.64898351,2169.5,2167.9,7.49745826]
[1770217307045,0.23087,2168.8,2167.9,0.00335072]
[1770217307245,0.23093,2168.3,2167.0,7.49745826]
[1770217307447,0.23094,2168.2,2166.6,7.49745826]
[1770217307842,0.23094,2168.2,2166.5,0.0671]
[1770217307843,1.41483279,2167.8,2166.5,0.0671]
[1770217308045,2.47749279,2167.5,2166.5,0.0671]
[1770217308249,0.69203,2167.4,2166.5,0.07124764]
[1770217308449,0.461,2167.4,2166.5,0.07124764]
[1770217308750,0.45,2167.2,2166.5,0.07124764]
[1770217308950,0.461,2167.4,2166.5,0.07124764]
[1770217308951,0.45,2167.0,2166.5,0.07124764]
[1770217309150,0.45,2166.6,2165.3,7.49745826]
[1770217309353,1.83710983,2166.3,2165.0,7.49745826]
[1770217309646,1.38710983,2166.6,2165.0,7.49745826]
[1770217310044,0.45,2166.5,2165.0,7.49745826]
[1770217310246,1.06336,2166.1,2165.0,0.00376286]
[1770217310447,1.06336,2166.1,2163.7,7.49745826]
[1770217310448,1.94231439,2165.9,2163.7,7.49745826]
[1770217310646,2.40331439,2165.8,2163.7,7.72886826]
[1770217310842,1.94231439,2165.3,2163.7,8.22179706]
[1770217311043,0.461,2165.8,2163.7,7.49745826]
[1770217311044,1.94231439,2165.7,2163.7,7.49745826]
[1770217311344,2.39231439,2165.2,2163.7,7.50230198]
[1770217311548,1.94231439,2164.9,2163.7,0.00484372]
[1770217311851,1.94231439,2164.6,2163.2,7.49745826]
[1770217312051,1.94231439,2164.6,2162.4,0.69255]
[1770217312052,1.93747067,2164.4,2162.6,7.49745826]
[1770217312442,0.45,2163.8,2162.6,7.49745826]
[1770217312649,2.46160825,2163.8,2162.3,0.46245982]
[1770217312844,0.45,2163.1,2162.3,0.46245982]
[1770217313049,2.46760213,2163.8,2162.5,0.02867606]
[1770217313248,0.00599388,2163.8,2162.5,7.52613432]
[1770217313448,0.00599388,2163.8,2162.5,0.02867606]
[1770217313449,2.91760213,2163.8,2162.5,0.02867606]
[1770217313649,0.00599388,2163.8,2162.8,8.40134463]
[1770217313946,0.461,2164.6,2163.2,7.33637463]
[1770217314147,0.23124,2165.4,2163.2,7.33637463]
[1770217314148,2.46150782,2165.1,2163.4,8.40103463]
[1770217314349,2.46150782,2165.1,2163.4,7.33637463]
[1770217314544,2.31909428,2165.5,2163.6,7.33637463]
[1770217314748,2.31909428,2165.3,2163.8,7.33637463]
[1770217315053,2.31909428,2165.1,2163.8,7.33637463]
[1770217315454,0.0057734,2165.5,2163.8,7.33637463]
[1770217315947,2.32486768,2165.5,2163.8,7.33637463]
[1770217316149,2.31909428,2165.4,2163.8,7.33637463]
[1770217316350,3.29064867,2165.0,2163.4,7.79737463]
[1770217316546,2.68874867,2164.9,2163.4,7.79737463]
[1770217316749,2.68874867,2164.9,2162.6,8.40143463]
[1770217316750,2.22674867,2164.6,2162.6,8.40143463]
[1770217317046,0.462,2164.9,2163.0,8.63273463]
[1770217317252,0.462,2164.9,2163.2,7.56784463]
[1770217317552,0.462,2164.9,2163.2,8.63262463]
[1770217317748,0.45,2164.7,2163.4,7.33637463]
[1770217318050,0.462,2164.9,2163.4,7.33637463]
[1770217318254,0.912,2164.9,2163.4,7.33637463]
[1770217318453,0.462,2164.9,2163.4,7.33637463]
[1770217318653,1.06336,2166.1,2163.6,7.44852024]
[1770217318654,2.32253196,2165.5,2163.6,7.44852024]
[1770217319552,0.0057734,2165.5,2163.8,7.44852024]
[1770217319749,0.0057734,2165.5,2164.0,8.74428024]
[1770217319948,0.0057734,2165.5,2164.0,7.67990024]
[1770217320152,0.0057734,2165.5,2164.2,7.44852024]
[1770217320350,0.0057734,2165.5,2164.2,7.45423662]
[1770217320554,1.2944,2166.3,2164.2,7.45423662]
[1770217320555,3.52804089,2166.3,2164.4,7.44852024]
[1770217320856,3.76144285,2167.9,2164.4,7.44852024]
[1770217320857,3.29632089,2167.5,2165.2,7.44852024]
[1770217321060,1.06287,2167.1,2165.2,7.44852024]
[1770217321257,1.06322,2166.4,2165.2,7.44852024]
[1770217321462,2.23364089,2166.7,2165.2,7.44852024]
[1770217321661,1.29369,2167.5,2165.4,7.44852024]
[1770217321959,1.29369,2167.5,2165.4,4.84852024]
[1770217321960,0.23107,2167.0,2165.4,4.84852024]
[1770217322162,0.2311,2166.8,2165.4,4.84852024]
[1770217322362,1.06312,2166.6,2165.4,4.84852024]
[1770217322558,1.06301,2166.8,2164.5,0.462]
[1770217322559,0.23114,2166.3,2164.5,0.462]
[1770217322764,0.23116,2166.2,2164.5,0.462]
[1770217322967,1.06336,2166.1,2164.5,0.462]
[1770217323164,0.00518169,2166.1,2164.6,0.84899573]
[1770217323360,1.0635,2165.8,2164.5,0.462]
[1770217323664,0.45,2165.3,2164.2,0.00571638]
[1770217323960,5.94313303,2165.8,2164.3,8.14085495]
[1770217324256,1.06384,2165.1,2164.2,0.00571638]
[1770217324455,5.86265187,2164.6,2163.1,0.462]
[1770217324661,0.23128,2165.0,2163.1,7.91052024]
[1770217325056,4.79852187,2166.0,2163.9,7.44852024]
[1770217325260,0.23124,2165.4,2164.1,7.44852024]
[1770217325462,0.23124,2165.4,2164.1,0.00419269]
[1770217325463,0.23127,2165.1,2164.1,0.00419269]
[1770217325655,0.2313,2164.8,2163.7,7.44852024]
[1770217325860,0.23132,2164.6,2163.7,7.44852024]
[1770217326169,0.6814,2163.9,2162.7,7.44852024]
[1770217326355,5.26052187,2164.1,2162.7,7.44852024]
[1770217326857,4.8813554,2163.9,2162.5,7.47120096]
[1770217327163,5.9458454,2163.8,2162.5,7.47120096]
[1770217327364,0.45,2163.7,2162.5,7.47120096]
[1770217327757,4.8813554,2163.6,2162.5,0.0270979]
[1770217327958,0.45,2163.7,2162.5,7.47561814]
[1770217328167,0.00398653,2164.1,2162.9,7.44852024]
[1770217328458,1.06424,2164.3,2162.9,7.44852024]
[1770217328654,0.23135,2164.3,2162.9,7.44852024]
[1770217328861,0.45,2164.2,2162.9,7.44852024]
[1770217329060,0.45,2164.4,2162.9,7.44852024]
[1770217329260,0.23572804,2164.4,2162.9,7.44852024]
[1770217329660,0.45,2164.0,2162.9,7.44852024]
[1770217329860,4.93272776,2164.2,2162.5,7.47561814]
[1770217330057,5.38272776,2163.7,2162.5,0.0270979]
[1770217330257,0.45,2163.0,2162.5,0.0270979]
[1770217330761,4.90449836,2162.8,2161.5,7.44852024]
[1770217331057,5.13602836,2162.7,2160.9,7.44852024]
[1770217331264,4.90449836,2162.7,2160.9,7.68023024]
[1770217331659,4.91021314,2162.7,2160.9,7.68505398]
[1770217331855,0.45,2162.6,2160.9,7.68505398]
[1770217332064,4.91021314,2162.7,2160.9,7.68505398]
[1770217332065,5.36021314,2162.7,2160.9,7.68505398]
[1770217332260,0.45,2162.6,2160.9,7.68505398]
[1770217332463,4.91021314,2162.7,2160.9,7.68505398]
[1770217332658,5.12007033,2162.4,2160.9,0.00482374]
[1770217332862,6.18646033,2160.4,2160.0,1e-05]
[1770217333066,1.06606,2160.6,2159.5,1e-05]
[1770217333067,0.45,2160.6,2159.5,1e-05]
[1770217333261,4.66654577,2161.2,2159.6,7.45334398]
[1770217333661,0.23165,2161.6,2159.6,7.45334398]
[1770217333867,0.00527435,2161.2,2159.8,7.44852024]
[1770217334161,0.00527435,2161.2,2159.6,1.07662098]
[1770217334162,3.88510873,2160.4,2159.6,0.00526724]
[1770217334356,3.88510873,2160.4,2158.8,7.44852024]
[1770217334557,3.7439901,2160.8,2159.7,0.00482374]
[1770217334763,3.7439901,2160.8,2159.7,0.0177]
[1770217334966,0.45,2160.3,2159.7,0.0177]
[1770217335162,1.06616,2160.4,2159.1,7.44852024]
[1770217335365,0.45,2160.2,2159.2,0.00482374]
[1770217335563,3.7439901,2160.4,2159.2,0.00482374]
[1770217335867,0.45,2160.0,2159.2,0.00482374]
[1770217336164,5.0419301,2160.4,2159.2,0.00482374]
[1770217336165,0.45,2160.1,2159.2,0.00482374]
[1770217336467,0.45,2159.7,2159.2,0.00482374]
[1770217336657,3.09609889,2160.2,2159.2,0.00482374]
[1770217336862,3.09609889,2160.2,2157.9,1.29941]
[1770217336863,2.59854975,2160.6,2154.7,7.70516684]
[1770217337060,1.06749,2157.8,2156.3,8.16891345]
[1770217337260,1.06729,2158.2,2156.3,8.16891345]
[1770217337563,0.45,2158.2,2156.3,8.16891345]
[1770217337863,1.06759,2157.5,2156.4,0.46374661]
[1770217338161,1.52966,2157.4,2156.5,0.46374661]
[1770217338467,0.462,2157.4,2156.5,8.16891345]
[1770217338670,0.45,2157.4,2156.5,8.16891345]
[1770217338966,0.45,2157.2,2156.5,8.16891345]
[1770217339162,0.45,2157.4,2156.5,0.46374661]
[1770217339364,0.00482627,2158.2,2156.5,9.23698345]
[1770217339661,0.45,2158.4,2157.0,7.70516684]
[1770217339867,0.45,2158.2,2157.0,7.70516684]
[1770217340059,0.45,2157.2,2156.3,0.00508836]
[1770217340267,1.29958,2157.7,2156.3,7.7102552]
[1770217340460,0.45,2157.6,2156.3,7.7102552]
[1770217340664,41.25,2158.1,2156.3,7.7102552]
[1770217340869,0.00441481,2157.6,2156.5,7.70516684]
[1770217341671,0.45441481,2157.6,2156.5,7.70516684]
[1770217341870,0.463,2158.2,2156.7,1.06797]
[1770217342068,0.463,2158.2,2156.8,7.70516684]
[1770217342665,0.45,2158.4,2157.5,7.44852024]
[1770217342870,0.00595192,2158.4,2157.5,7.91152024]
[1770217343368,0.463,2159.2,2157.5,7.91152024]
[1770217343566,0.463,2159.2,2157.7,7.44852024]
[1770217343965,1.06695,2158.8,2157.2,7.43198937]
[1770217344171,2.23709665,2158.6,2157.2,7.43198937]
[1770217344366,0.45499073,2158.6,2157.2,7.43198937]
[1770217344669,0.00499073,2158.6,2157.2,7.43198937]
[1770217344970,0.00499073,2158.6,2157.5,7.43198937]
[1770217345269,0.23182,2159.9,2157.9,5.12816041]
[1770217345470,1.29825,2159.9,2157.9,5.12816041]
[1770217345775,0.23187,2159.5,2157.9,5.12816041]
[1770217345968,1.5165,2159.7,2157.9,5.12816041]
[1770217346171,1.0666,2159.5,2157.9,5.13226721]
[1770217346366,0.45,2159.1,2157.9,5.13226721]
[1770217346567,0.00396682,2159.7,2158.3,1.06719]
[1770217346770,0.00396682,2159.7,2158.0,0.82752092]
[1770217347072,0.00396682,2159.7,2158.1,1.06729]
[1770217347371,1.06573,2161.3,2158.1,1.06729]
[1770217347372,0.463,2161.0,2159.0,7.43198937]
[1770217347573,1.06608,2160.6,2159.2,7.43198937]
[1770217347772,0.23175,2160.6,2159.2,7.43198937]
[1770217347965,0.45,2159.9,2158.6,7.43198937]
[1770217348171,0.45,2160.1,2158.6,7.43198937]
[1770217348371,5.80522505,2159.3,2156.1,0.23223]
[1770217348669,5.80522505,2159.1,2157.2,1.06774]
[1770217348874,5.80522505,2159.5,2157.2,1.06774]
[1770217349072,5.80522505,2159.5,2157.3,0.01073486]
[1770217349475,0.463,2160.0,2158.2,1.06723]
[1770217349770,0.463,2160.0,2158.3,0.463]
[1770217350173,1.51646,2159.8,2158.1,0.30015199]
[1770217350368,6.10246612,2159.7,2158.2,7.43198937]
[1770217350671,0.463,2160.0,2158.3,0.463]
[1770217350867,6.56546612,2160.0,2158.4,7.43198937]
[1770217351067,1.51643,2159.9,2159.4,2.14382594]
[1770217351277,0.45,2159.5,2158.4,7.43198937]
[1770217351574,0.00364047,2160.1,2158.4,8.49911937]
[1770217351770,0.00364047,2160.1,2158.6,7.43198937]
[1770217351972,0.00364047,2160.1,2158.6,8.49902937]
[1770217352170,0.00364047,2160.1,2158.6,7.43596494]
[1770217352373,0.00364047,2160.1,2158.8,7.43198937]
[1770217352764,0.45,2160.0,2158.8,7.43198937]
[1770217352966,0.45,2159.1,2158.6,0.00397557]
[1770217353169,0.45,2159.2,2158.6,0.00397557]
[1770217353572,5.83961441,2159.8,2158.6,0.00397557]
[1770217353573,5.83961441,2159.8,2158.6,7.43596494]
[1770217353770,7.35627441,2159.4,2158.6,0.00397557]
[1770217353969,7.35259884,2158.8,2157.1,7.43198937]
[1770217354172,6.74863884,2158.8,2157.1,7.43198937]
[1770217354372,0.463,2158.8,2157.1,7.43198937]
[1770217354576,0.413,2158.8,2157.1,7.43198937]
[1770217354770,6.06028732,2159.6,2157.3,7.43198937]
[1770217354975,7.12684732,2159.6,2157.3,7.43689895]
[1770217355166,5.82842732,2159.3,2157.3,7.43689895]
[1770217355366,1.06686,2159.0,2157.3,7.43689895]
[1770217355572,6.89538732,2158.8,2157.3,7.43689895]
[1770217355878,5.82842732,2158.5,2157.3,0.00490958]
[1770217356072,5.83295563,2158.5,2157.3,0.00490958]
[1770217356473,6.90006563,2158.5,2157.3,0.00490958]
[1770217356668,5.93539996,2158.3,2156.9,7.43198937]
[1770217356872,7.00289996,2157.7,2156.4,7.43198937]
[1770217357174,5.93539996,2157.1,2156.3,0.45329872]
[1770217357879,5.93539996,2157.1,2156.3,0.45662484]
[1770217358176,5.93539996,2156.9,2155.6,7.43198937]
[1770217358379,6.39839996,2156.9,2155.6,7.43198937]
[1770217358573,6.69025726,2156.7,2155.2,7.43198937]
[1770217358774,6.69037726,2156.5,2154.8,7.43198937]
[1770217358976,5.62230726,2156.1,2154.8,0.00376648]
[1770217359171,5.62233726,2155.9,2153.9,7.66445937]
[1770217359374,5.62233726,2155.9,2154.0,0.00376648]
[1770217359576,5.39007726,2155.9,2154.3,7.66440937]
[1770217359776,0.463,2156.0,2154.8,7.43198937]
[1770217360076,5.85307726,2155.9,2154.8,0.00547174]
[1770217360273,7.15371726,2155.9,2154.8,0.00547174]
[1770217360576,5.55304413,2155.8,2154.0,7.89498937]
[1770217360775,5.55304413,2155.8,2154.1,7.43575585]
[1770217360978,5.32078413,2155.0,2154.1,0.00376648]
[1770217361174,5.32078413,2155.0,2152.9,7.43198937]
[1770217361175,5.54940765,2154.7,2152.9,7.43198937]
[1770217361476,5.54942765,2154.5,2152.9,7.43576689]
[1770217361677,5.54942765,2154.5,2152.9,0.00377752]
[1770217361870,5.31701765,2154.5,2152.9,0.00377752]
[1770217362071,5.31701765,2154.5,2152.9,7.43576689]
[1770217362273,5.31701765,2154.3,2152.9,0.00377752]
[1770217362772,5.61445657,2154.1,2152.9,0.00377752]
[1770217362970,5.38200657,2153.9,2152.9,0.00377752]
[1770217363275,5.37822905,2152.9,2151.0,7.43198937]
[1770217363572,5.37822905,2152.9,2150.4,1.0711]
[1770217363573,5.37822905,2152.1,2150.4,0.23285]
[1770217363774,5.37822905,2152.6,2151.1,1.07073]
[1770217364079,5.38156342,2152.6,2151.1,8.73897845]
[1770217364282,0.00333437,2152.6,2151.5,8.50251937]
[1770217364575,5.36910858,2152.6,2151.1,7.43545845]
[1770217364776,0.00333437,2152.6,2151.1,7.43545845]
[1770217365274,0.00333437,2152.6,2151.2,7.43746111]
[1770217365477,0.00333437,2152.6,2151.7,7.43198937]
[1770217365778,5.36577421,2153.7,2152.0,8.50230937]
[1770217365970,5.36577421,2153.0,2151.6,7.43198937]
[1770217366271,1.06984,2153.0,2151.6,7.43198937]
[1770217366471,5.15979793,2152.8,2151.1,7.43545845]
[1770217366673,5.15979793,2152.8,2151.5,7.43198937]
[1770217366878,5.15979793,2152.8,2151.7,7.43198937]
[1770217366879,0.00397982,2152.8,2151.7,7.43198937]
[1770217367175,5.15979793,2153.8,2152.1,7.43198937]
[1770217367375,0.464,2153.9,2152.3,7.43198937]
[1770217367577,0.464,2153.9,2152.9,7.43198937]
[1770217367780,5.15979793,2155.2,2153.4,7.43198937]
[1770217368081,0.464,2155.3,2153.9,7.43198937]
[1770217368281,0.46910372,2155.3,2153.9,7.43756613]
[1770217368475,1.06879,2155.1,2153.9,7.43756613]
[1770217368680,6.2967696,2155.0,2153.9,0.00557676]
[1770217368881,5.4602696,2155.0,2153.9,0.00557676]
[1770217369285,5.2279096,2155.0,2153.9,0.00557676]
[1770217369478,0.23242,2154.4,2153.0,7.43198937]
[1770217369678,5.2279096,2154.6,2153.0,7.43198937]
[1770217369873,5.2279096,2154.6,2153.2,7.43746111]
[1770217370079,5.2279096,2154.6,2153.2,7.43198937]
[1770217370377,5.53290701,2155.6,2154.3,0.00547174]
[1770217370576,5.53290701,2155.6,2154.3,0.00457933]
[1770217370776,1.06835,2156.0,2154.6,0.00547174]
[1770217370975,5.53290701,2155.7,2154.3,0.00457933]
[1770217371180,5.53290701,2155.7,2154.3,0.01005107]
[1770217371384,0.23233,2155.2,2154.3,0.00457933]
[1770217371582,0.23236,2155.0,2154.3,0.00457933]
[1770217371786,5.53290701,2155.2,2154.3,0.00457933]
[1770217371981,6.83396701,2155.2,2154.3,0.00457933]
[1770217372278,0.23235,2155.0,2153.6,7.89598937]
[1770217372480,0.46910372,2155.3,2153.6,7.89598937]
[1770217372681,0.46910372,2155.3,2153.6,7.90146111]
[1770217372682,0.23236,2155.0,2153.6,7.90146111]
[1770217372985,0.46910372,2155.3,2154.2,7.43198937]
[1770217373185,0.46910372,2155.3,2154.2,7.43542384]
[1770217373481,0.46910372,2155.3,2154.4,0.00547174]
[1770217373678,1.068,2156.7,2154.6,7.687697]
[1770217373679,5.7390066,2156.5,2154.6,7.687697]
[1770217373880,0.23223,2156.2,2154.6,7.69316874]
[1770217374082,0.23226,2155.9,2154.6,7.687697]
[1770217374289,0.23226,2155.9,2154.6,7.69316874]
[1770217374579,0.23226,2155.9,2154.8,0.00547174]
[1770217374784,0.23592378,2155.9,2154.9,0.00547174]
[1770217375181,0.23227,2155.8,2154.5,7.687697]
[1770217375382,0.23227,2155.8,2154.6,7.687697]
[1770217375881,0.00366378,2155.9,2155.0,7.687697]
[1770217376083,0.00366378,2155.9,2155.0,7.69316874]
[1770217376583,5.72241565,2155.8,2154.3,7.687697]
[1770217376786,0.00366378,2155.9,2154.6,7.687697]
[1770217377585,0.23233,2155.4,2154.2,7.69113147]
[1770217377785,0.23236,2155.2,2154.2,0.00343447]
[1770217377985,0.2323,2155.7,2154.2,7.15825985]
[1770217378183,0.464,2155.8,2154.2,7.15825985]
[1770217378579,0.69629,2155.8,2154.2,7.15825985]
[1770217378784,6.24569745,2155.8,2154.2,7.15825985]
[1770217378988,0.464,2155.8,2154.2,7.15825985]
[1770217379587,6.85033745,2155.6,2154.2,7.15825985]
[1770217379789,0.2323,2155.7,2154.2,7.15825985]
[1770217380082,0.23234,2155.4,2154.2,7.15825985]
[1770217380285,0.23237,2155.1,2154.2,0.00343447]
[1770217380680,0.2323,2155.7,2154.2,7.15825985]
[1770217380881,1.06874,2155.4,2154.2,7.15825985]
[1770217381179,5.7104599,2155.5,2154.2,7.15825985]
[1770217381382,0.464,2155.8,2154.5,7.15482538]
[1770217381580,6.1744599,2156.8,2155.2,7.15482538]
[1770217381785,1.06814,2156.6,2155.2,7.15482538]
[1770217381987,0.23229,2155.8,2154.6,7.15482538]
[1770217382291,0.464,2155.9,2154.6,7.15482538]
[1770217382487,6.23661678,2156.8,2154.8,7.38721538]
[1770217382683,0.23221,2156.6,2155.0,7.38719538]
[1770217382887,0.23225,2156.2,2155.0,7.15482538]
[1770217383090,0.23226,2156.1,2155.0,7.15482538]
[1770217383287,0.23227,2156.0,2155.0,7.15482538]
[1770217383489,1.06854,2155.8,2154.5,7.15482538]
[1770217383788,0.464,2155.9,2154.5,8.2716413]
[1770217384187,0.464,2155.9,2154.5,7.15482538]
[1770217384585,0.23229,2155.8,2154.5,7.15482538]
[1770217384787,0.23234,2155.4,2154.2,7.15825985]
[1770217384990,0.23238,2155.0,2154.2,0.00343447]
[1770217385195,0.00331013,2155.0,2154.2,7.15825985]
[1770217385491,0.2323,2155.7,2154.2,7.15825985]
[1770217385687,0.23232,2155.5,2154.4,7.15482538]
[1770217385991,6.9146461,2154.3,2153.0,7.15482538]
[1770217386192,0.464,2154.2,2153.0,7.15482538]
[1770217386487,0.23239,2154.9,2153.0,7.38740538]
[1770217386692,3.0732349,2155.1,2153.2,7.15482538]
[1770217386989,3.0732349,2155.1,2153.2,7.15839527]
[1770217386990,0.23246,2154.2,2153.2,7.15839527]
[1770217387289,0.4695816,2155.1,2153.6,0.23252]
[1770217387492,0.4695816,2155.1,2153.7,7.15482538]
[1770217387993,0.4695816,2155.1,2153.2,0.00356989]
[1770217387994,7.21414277,2155.0,2153.3,7.15482538]
[1770217388187,0.0055816,2155.1,2153.3,8.68857538]
[1770217388390,0.0055816,2155.1,2154.0,7.15482538]
[1770217388588,0.464,2155.9,2154.7,7.15482538]
[1770217388794,1.06809,2156.7,2155.1,7.15482538]
[1770217388987,0.23225,2156.2,2155.1,7.15482538]
[1770217389187,0.23228,2155.9,2155.1,7.15482538]
[1770217389389,2.6092349,2156.7,2155.1,7.15482538]
[1770217389585,2.6092349,2157.1,2155.3,7.15482538]
[1770217389795,0.23218,2156.8,2155.3,7.15482538]
[1770217390394,0.464,2157.1,2155.3,7.15482538]
[1770217390598,0.69967607,2157.1,2155.3,7.15482538]
[1770217390787,2.6092349,2158.0,2155.9,8.22330538]
[1770217390988,0.464,2158.3,2156.3,8.45534538]
[1770217391288,0.23205,2158.1,2156.3,7.15482538]
[1770217391492,7.04081951,2158.1,2156.5,7.15482538]
[1770217391691,5.97340951,2158.1,2156.5,7.15482538]
[1770217391885,0.00564539,2158.1,2156.7,7.15482538]
[1770217392087,0.23207,2157.9,2156.7,7.16084064]
[1770217392292,0.00564539,2158.1,2156.7,7.16084064]
[1770217392589,8.03059404,2159.8,2157.5,1.06766]
[1770217392794,0.464,2160.2,2158.0,7.15482538]
[1770217392987,1.06663,2159.7,2158.0,7.15482538]
[1770217393191,1.06702,2158.9,2158.0,7.15482538]
[1770217393389,1.06702,2158.9,2157.5,0.01073039]
[1770217393390,6.79587942,2159.1,2157.5,7.15482538]
[1770217393692,1.29898,2158.9,2157.5,7.15482538]
[1770217393892,0.23195,2158.9,2157.5,7.15482538]
[1770217394092,0.46912939,2159.1,2157.5,7.15482538]
[1770217394292,1.06707,2158.8,2157.7,7.15482538]
[1770217394494,1.29923,2158.5,2156.8,7.15482538]
[1770217394699,0.232,2158.5,2156.8,7.15482538]
[1770217394898,3.79829343,2158.8,2156.8,7.15482538]
[1770217395091,0.70105939,2159.1,2157.0,7.15482538]
[1770217395294,0.00512939,2159.1,2157.7,7.15482538]
[1770217395496,2.61265529,2160.7,2158.4,7.15482538]
[1770217395695,0.464,2161.0,2158.8,8.45380538]
[1770217395892,1.52998,2161.0,2159.0,7.15482538]
[1770217396097,0.69586406,2160.9,2159.0,7.15482538]
[1770217396297,0.23175,2160.8,2159.0,7.15482538]
[1770217396498,0.23175,2160.8,2159.0,7.16025763]
[1770217396899,0.00538079,2160.9,2159.2,7.15482538]
[1770217397292,0.00538079,2160.9,2159.2,8.22168538]
[1770217397498,6.8285223,2162.1,2159.7,7.15482538]
[1770217397700,1.06553,2161.9,2160.0,7.15482538]
[1770217397999,1.29699,2162.2,2160.3,7.15482538]
[1770217398194,0.23161,2162.1,2160.3,7.15482538]
[1770217398399,0.464,2162.5,2160.8,7.15482538]
[1770217398604,0.464,2162.5,2161.0,7.15482538]
[1770217398897,0.23153,2162.9,2161.0,7.15482538]
[1770217399096,1.06534,2162.3,2161.0,7.15482538]
[1770217399299,6.06051982,2163.9,2161.5,7.15482538]
[1770217399496,1.06474,2163.5,2161.5,7.16029503]
[1770217399799,1.29639,2163.2,2161.5,7.16029503]
[1770217399999,1.06459,2163.8,2161.5,7.16029503]
[1770217400000,1.06473,2163.6,2161.5,7.16029503]
[1770217400200,1.06485,2163.3,2161.5,7.16029503]
[1770217400400,1.06532,2162.4,2161.5,0.00546965]
[1770217400595,0.23156,2162.6,2161.5,7.16029503]
[1770217400794,0.463,2163.8,2161.7,7.15482538]
[1770217401005,1.06885718,2163.9,2163.1,7.15482538]
[1770217401300,2.56516929,2168.0,2163.9,8.21933538]
[1770217401506,15.35838157,2170.0,2163.3,0.463]
[1770217401507,1.26081387,2168.9,2166.4,7.15482538]
[1770217401801,0.23093,2168.8,2167.2,3.79829343]
[1770217401996,7.70548584,2171.2,2167.2,3.79829343]
[1770217401997,0.08018563,2171.9,2168.7,3.79829343]
[1770217402197,4.26129343,2172.6,2169.4,3.79829343]